bitfinex-derivatives/quotes_SOLF0:USTF0_20250830
["timestamp","ask_amount","ask_price","bid_price","bid_amount"]
[1756535512541,3.58,205.77,205.69,7.41]
[1756535512741,3.58,205.77,205.7,4.61377485]
[1756535512942,3.58,205.77,205.71,4.61377485]
[1756535513147,3.58,205.77,205.72,4.61377485]
[1756535513337,119.86,205.78,205.73,4.61377485]
[1756535513540,119.86,205.78,205.74,4.61377485]
[1756535513735,2.81021816,205.76,205.75,4.61377485]
[1756535513941,6.39021816,205.76,205.68,4.06537812]
[1756535514141,3.58,205.75,205.69,4.62213769]
[1756535514342,2.81021816,205.76,205.7,4.62213769]
[1756535514538,119.86,205.78,205.64,4.06537812]
[1756535514539,3.58,205.72,205.64,4.06537812]
[1756535514738,3.58,205.72,205.62,12.85657474]
[1756535514739,2.81021816,205.69,205.62,11.47537812]
[1756535514938,2.81021816,205.69,205.62,7.41]
[1756535515140,2.81021816,205.69,205.61,4.06537812]
[1756535515338,2.81021816,205.66,205.59,11.47537812]
[1756535515540,122.29016468,205.65,205.59,11.47537812]
[1756535515741,4.19016468,205.64,205.6,7.41]
[1756535515943,4.19016468,205.63,205.6,7.41]
[1756535516137,4.19016468,205.62,205.6,7.41]
[1756535516446,4.19016468,205.61,205.6,7.41]
[1756535516649,118.1,205.65,205.6,7.41]
[1756535517941,118.1,205.65,205.56,11.47537812]
[1756535518145,118.1,205.65,205.56,7.41]
[1756535522145,326.74,205.72,205.55,2.81021816]
[1756535522348,2.81021816,205.67,205.56,7.41]
[1756535524545,2.81021816,205.68,205.56,7.41]
[1756535524740,28.65021816,205.68,205.56,7.41]
[1756535525850,2.81021816,205.65,205.56,7.41]
[1756535526441,326.74,205.72,205.57,2.81021816]
[1756535526652,119.88,205.71,205.61,7.41]
[1756535527646,326.74,205.72,205.61,7.41]
[1756535527844,119.88,205.71,205.61,7.41]
[1756535528242,326.74,205.72,205.62,2.81021816]
[1756535528452,326.74,205.72,205.63,7.66]
[1756535529251,326.74,205.72,205.63,10.47021816]
[1756535530655,446.62,205.72,205.64,7.66]
[1756535532448,326.74,205.72,205.64,7.66]
[1756535532653,446.62,205.72,205.64,7.66]
[1756535533048,326.74,205.72,205.64,7.66]
[1756535533351,119.88,205.76,205.67,7.66]
[1756535533552,119.88,205.76,205.7,7.66]
[1756535536857,2.81021816,205.79,205.7,7.66]
[1756535537158,25.7,205.78,205.7,7.66]
[1756535537855,25.7,205.78,205.66,2.81021816]
[1756535538049,25.7,205.78,205.67,7.66]
[1756535538962,2.81021816,205.82,205.7,7.66]
[1756535539168,43.84,205.81,205.7,7.66]
[1756535539358,2.81021816,205.79,205.7,7.66]
[1756535539560,2.81021816,205.79,205.66,7.66]
[1756535542262,2.81021816,205.8,205.69,7.66]
[1756535543065,25.68,205.8,205.72,7.66]
[1756535550562,2.81021816,205.82,205.72,7.66]
[1756535551068,119.82,205.81,205.72,7.66]
[1756535556171,3.65608968,205.83,205.72,7.66]
[1756535556372,119.8,205.82,205.72,7.66]
[1756535561772,2.81021816,205.8,205.72,7.66]
[1756535564678,119.8,205.82,205.72,7.66]
[1756535564874,119.8,205.82,205.72,10.47021816]
[1756535566075,2.81021816,205.81,205.72,7.66]
[1756535573176,2.81021816,205.81,205.72,11.72693028]
[1756535575277,2.81021816,205.81,205.72,4.06693028]
[1756535575576,2.81021816,205.81,205.73,7.64]
[1756535576280,2.81021816,205.81,205.73,11.70693028]
[1756535579179,2.81021816,205.81,205.71,5.44657474]
[1756535579180,2.81021816,205.75,205.67,4.09404991]
[1756535579375,2.81021816,205.78,205.64,5.44657474]
[1756535579376,2.81021816,205.72,205.64,7.64]
[1756535580382,2.81021816,205.73,205.64,7.64]
[1756535583582,120.11021816,205.78,205.65,7.64]
[1756535583779,2.81021816,205.75,205.65,7.64]
[1756535584783,2.81021816,205.72,205.65,7.64]
[1756535585387,2.81021816,205.75,205.65,7.64]
[1756535585583,3.52,205.74,205.65,7.64]
[1756535585778,0.84587152,205.83,205.65,7.64]
[1756535585779,6.04,205.77,205.65,7.64]
[1756535586185,3.4591288,205.76,205.65,7.64]
[1756535586379,3.4591288,205.75,205.65,7.64]
[1756535586579,3.4591288,205.74,205.65,7.64]
[1756535586779,3.4591288,205.73,205.65,7.64]
[1756535587080,3.4591288,205.72,205.65,7.64]
[1756535587274,3.45885033,205.71,205.65,7.64]
[1756535587476,3.45885033,205.7,205.64,7.35]
[1756535587679,3.45885033,205.69,205.64,7.35]
[1756535587881,2.81021816,205.75,205.64,7.35]
[1756535588083,3.45696402,205.74,205.64,7.35]
[1756535588283,3.45696402,205.73,205.64,7.35]
[1756535588482,3.45696402,205.72,205.64,7.35]
[1756535588784,3.45696402,205.71,205.64,7.35]
[1756535588982,3.45696402,205.7,205.64,7.35]
[1756535589177,3.45696402,205.69,205.64,7.35]
[1756535589377,2.81021816,205.75,205.64,7.35]
[1756535589683,3.46051868,205.74,205.64,7.35]
[1756535589984,3.46051868,205.73,205.64,7.35]
[1756535590280,3.46051868,205.72,205.64,7.35]
[1756535590475,3.46051868,205.71,205.64,7.35]
[1756535590674,3.46051868,205.7,205.64,7.35]
[1756535590981,3.46051868,205.69,205.61,7.35]
[1756535591178,2.81021816,205.72,205.61,7.35]
[1756535591179,3.46051868,205.68,205.61,7.35]
[1756535591380,2.81021816,205.72,205.61,7.35]
[1756535591679,3.45857137,205.71,205.61,7.35]
[1756535591880,3.45857137,205.7,205.61,7.35]
[1756535592079,3.45857137,205.69,205.61,7.35]
[1756535592381,3.45857137,205.68,205.61,7.35]
[1756535592582,2.81021816,205.72,205.61,7.35]
[1756535592782,3.45756694,205.71,205.61,7.35]
[1756535593083,3.45756694,205.7,205.61,7.35]
[1756535593280,3.45756694,205.69,205.61,7.35]
[1756535593473,3.45756694,205.68,205.61,7.35]
[1756535593779,3.45756694,205.67,205.61,7.35]
[1756535593978,3.45756694,205.66,205.61,7.35]
[1756535594176,3.45756694,205.65,205.57,7.35]
[1756535594378,13.08,205.68,205.57,7.35]
[1756535594582,3.45464851,205.67,205.57,7.35]
[1756535594782,3.45464851,205.66,205.57,7.35]
[1756535594983,3.45464851,205.65,205.57,7.35]
[1756535595183,13.08,205.68,205.57,7.35]
[1756535595382,3.45464977,205.67,205.57,7.35]
[1756535595582,3.45464977,205.66,205.57,7.35]
[1756535595782,3.45464977,205.65,205.57,7.35]
[1756535596084,13.08,205.68,205.57,7.35]
[1756535596380,3.45329999,205.67,205.57,7.35]
[1756535596683,3.45329999,205.66,205.57,7.35]
[1756535596884,13.08,205.68,205.57,7.35]
[1756535597184,3.45229801,205.67,205.57,7.35]
[1756535597385,3.45229801,205.66,205.57,7.35]
[1756535597686,3.45108095,205.65,205.57,7.35]
[1756535597882,13.08,205.68,205.57,7.35]
[1756535598083,3.4511556,205.67,205.57,7.35]
[1756535598379,3.4511556,205.66,205.57,7.35]
[1756535598683,3.4511556,205.65,205.57,7.35]
[1756535598888,13.08,205.68,205.57,7.35]
[1756535599086,3.45017399,205.67,205.57,7.35]
[1756535599283,3.45017399,205.66,205.57,7.35]
[1756535599484,3.45017399,205.65,205.57,7.35]
[1756535599782,13.08,205.68,205.57,7.35]
[1756535599975,3.44923454,205.67,205.57,7.35]
[1756535600177,3.44923454,205.66,205.57,7.35]
[1756535600377,13.08,205.68,205.57,7.35]
[1756535600582,3.44863222,205.67,205.57,7.35]
[1756535600887,3.44863222,205.66,205.57,7.35]
[1756535601092,39.96,205.7,205.59,7.35]
[1756535601292,3.44880654,205.69,205.59,7.35]
[1756535601493,3.44880654,205.68,205.59,7.35]
[1756535601693,3.44896103,205.67,205.59,7.35]
[1756535601890,3.65668634,205.72,205.59,7.35]
[1756535602094,3.44901713,205.71,205.61,2.81021816]
[1756535602395,3.44901713,205.7,205.62,7.35]
[1756535602691,3.65668634,205.72,205.62,7.35]
[1756535602692,3.44901713,205.69,205.62,7.35]
[1756535602892,3.44901713,205.68,205.62,7.35]
[1756535603088,3.44873966,205.67,205.59,7.35]
[1756535603283,2.81021816,205.69,205.59,7.35]
[1756535603484,3.44856283,205.68,205.59,7.35]
[1756535603692,2.81021816,205.69,205.59,7.35]
[1756535603991,3.44862278,205.68,205.59,7.35]
[1756535604192,2.81021816,205.69,205.59,7.35]
[1756535604387,3.4485532,205.68,205.59,7.35]
[1756535604584,3.4485532,205.67,205.59,7.35]
[1756535604783,2.81021816,205.69,205.59,7.35]
[1756535604984,3.44837219,205.68,205.59,7.35]
[1756535605185,3.44837219,205.67,205.59,7.35]
[1756535605383,2.81021816,205.69,205.59,7.35]
[1756535605586,3.44820612,205.68,205.59,7.35]
[1756535605794,3.44820612,205.67,205.59,7.35]
[1756535605995,2.81021816,205.69,205.59,7.35]
[1756535606193,3.44820612,205.68,205.59,7.35]
[1756535606392,3.44820612,205.67,205.59,7.35]
[1756535606695,2.81021816,205.69,205.59,7.35]
[1756535606891,3.44811634,205.68,205.59,7.35]
[1756535607095,3.44811634,205.67,205.59,7.35]
[1756535607390,2.81021816,205.69,205.59,7.35]
[1756535607594,3.44814525,205.68,205.59,7.35]
[1756535607891,3.44814525,205.67,205.59,7.35]
[1756535608096,2.81021816,205.69,205.59,7.35]
[1756535608287,3.44799597,205.68,205.59,7.35]
[1756535608489,3.44799597,205.67,205.59,7.35]
[1756535608689,2.81021816,205.69,205.59,7.35]
[1756535608894,3.44820173,205.68,205.59,7.35]
[1756535609195,3.44820173,205.67,205.59,7.35]
[1756535609487,2.81021816,205.69,205.59,7.35]
[1756535609696,3.44833356,205.68,205.59,7.35]
[1756535609894,3.44833356,205.67,205.59,7.35]
[1756535610194,2.81021816,205.69,205.59,7.35]
[1756535610694,3.44866676,205.68,205.59,7.35]
[1756535610991,3.44866676,205.67,205.59,7.35]
[1756535611192,2.81021816,205.69,205.59,7.35]
[1756535611387,3.44865776,205.68,205.59,7.35]
[1756535611593,3.44865776,205.67,205.59,7.35]
[1756535611783,2.81021816,205.69,205.59,7.35]
[1756535611991,3.44899905,205.68,205.59,7.35]
[1756535612288,3.44899905,205.67,205.59,7.35]
[1756535612494,3.44899905,205.66,205.59,7.35]
[1756535612697,2.81021816,205.69,205.59,7.35]
[1756535612891,3.44943072,205.68,205.59,7.35]
[1756535613099,3.44943072,205.67,205.59,7.35]
[1756535613293,3.44943072,205.66,205.59,7.35]
[1756535613489,2.81021816,205.69,205.59,7.35]
[1756535613697,3.44995721,205.68,205.59,7.35]
[1756535613897,3.44995721,205.67,205.59,7.35]
[1756535614099,3.44995721,205.66,205.59,7.35]
[1756535614395,2.81021816,205.69,205.59,7.35]
[1756535614597,3.45058367,205.68,205.59,7.35]
[1756535614796,3.45058367,205.67,205.59,7.35]
[1756535614995,3.45058367,205.66,205.59,7.35]
[1756535615198,2.81021816,205.69,205.59,7.35]
[1756535615399,3.45116934,205.68,205.59,7.35]
[1756535615599,3.45116934,205.67,205.59,7.35]
[1756535615804,3.45116934,205.66,205.59,7.35]
[1756535616100,2.81021816,205.69,205.59,7.35]
[1756535616296,3.45131801,205.68,205.59,7.35]
[1756535616496,3.45131801,205.67,205.59,7.35]
[1756535616795,3.45131801,205.66,205.59,7.35]
[1756535616996,2.81021816,205.69,205.59,7.35]
[1756535617200,3.45215928,205.68,205.59,7.35]
[1756535617399,3.45215928,205.67,205.59,7.35]
[1756535617603,3.45215928,205.66,205.59,7.35]
[1756535617797,3.45215928,205.65,205.59,7.35]
[1756535618004,2.81021816,205.68,205.59,7.35]
[1756535618303,3.45298537,205.67,205.59,7.35]
[1756535618501,3.45298537,205.66,205.59,7.35]
[1756535618701,3.45298537,205.65,205.59,7.35]
[1756535618901,43.73021816,205.68,205.59,7.35]
[1756535619104,3.4541094,205.67,205.59,7.35]
[1756535619305,3.4541094,205.66,205.59,7.35]
[1756535619500,3.4541094,205.65,205.59,7.35]
[1756535619694,43.73021816,205.68,205.59,7.35]
[1756535619900,3.44719819,205.67,205.59,7.35]
[1756535620198,3.44719819,205.66,205.59,7.35]
[1756535620400,3.44719819,205.65,205.59,7.35]
[1756535620601,43.73021816,205.68,205.59,7.35]
[1756535620802,3.44869794,205.67,205.59,7.35]
[1756535620997,43.73021816,205.68,205.59,7.35]
[1756535621302,3.44869651,205.67,205.59,7.35]
[1756535621603,3.44869651,205.66,205.59,10.16021816]
[1756535621798,2.81021816,205.74,205.63,7.6]
[1756535622000,3.45030776,205.73,205.63,7.6]
[1756535622198,3.45030776,205.72,205.63,7.6]
[1756535622401,3.45030776,205.71,205.63,7.6]
[1756535622603,3.45030776,205.7,205.63,7.6]
[1756535622800,3.45030776,205.69,205.63,7.6]
[1756535623105,3.45030776,205.68,205.63,7.6]
[1756535623302,3.45507487,205.67,205.63,7.6]
[1756535623502,119.8,205.73,205.63,7.6]
[1756535623702,3.45496304,205.72,205.63,7.6]
[1756535623902,3.45496304,205.71,205.63,7.6]
[1756535624108,3.45496304,205.7,205.63,7.6]
[1756535624309,3.45496304,205.69,205.63,7.6]
[1756535624503,2.81021816,205.71,205.63,7.6]
[1756535624504,3.45496304,205.68,205.63,7.6]
[1756535624806,3.45496304,205.67,205.63,7.6]
[1756535625007,3.45496304,205.66,205.63,7.6]
[1756535625208,119.8,205.73,205.63,7.6]
[1756535625509,3.45611794,205.72,205.63,7.6]
[1756535625711,3.45611794,205.71,205.63,7.6]
[1756535625900,3.45611794,205.7,205.63,7.6]
[1756535626209,2.81021816,205.68,205.6,7.6]
[1756535626408,3.45611794,205.67,205.6,7.6]
[1756535626607,3.45611794,205.66,205.6,7.6]
[1756535626804,3.45611794,205.65,205.58,7.6]
[1756535627004,3.45611794,205.64,205.58,7.6]
[1756535627303,3.45611794,205.63,205.58,7.6]
[1756535627504,58.18,205.68,205.58,7.6]
[1756535627706,3.45582523,205.67,205.58,7.6]
[1756535627906,3.45582523,205.66,205.58,7.6]
[1756535628111,3.45582523,205.65,205.58,7.6]
[1756535628311,3.45582523,205.64,205.58,7.6]
[1756535628508,3.45582523,205.63,205.58,7.6]
[1756535628711,58.18,205.68,205.58,7.6]
[1756535629011,3.45598373,205.67,205.58,7.6]
[1756535629201,3.45598373,205.66,205.58,7.6]
[1756535629404,3.45598373,205.65,205.58,7.6]
[1756535629607,3.45598373,205.64,205.58,7.6]
[1756535629906,3.45598373,205.63,205.58,7.6]
[1756535630202,58.18,205.68,205.58,7.6]
[1756535630406,3.45794412,205.67,205.58,7.6]
[1756535630602,3.45794412,205.66,205.58,7.6]
[1756535630810,3.45794412,205.65,205.58,7.6]
[1756535631010,3.45794412,205.64,205.58,7.6]
[1756535631209,2.81021816,205.7,205.58,7.6]
[1756535631407,3.45943686,205.69,205.61,7.6]
[1756535631612,3.45955979,205.68,205.61,7.6]
[1756535631806,3.45955979,205.67,205.61,7.6]
[1756535632003,3.45955979,205.66,205.61,7.6]
[1756535632208,3.45955979,205.65,205.6,2.81021816]
[1756535632403,3.45955979,205.64,205.6,2.81021816]
[1756535632609,24.08,205.7,205.6,2.81021816]
[1756535632810,3.46038808,205.69,205.61,7.6]
[1756535633112,3.46038808,205.68,205.61,7.6]
[1756535633413,3.46038808,205.67,205.61,7.6]
[1756535633612,3.46038808,205.66,205.6,2.81021816]
[1756535633809,3.46038808,205.65,205.6,2.81021816]
[1756535634011,3.46038808,205.64,205.61,7.6]
[1756535634210,3.46088711,205.63,205.61,7.6]
[1756535634509,26.89021816,205.7,205.61,7.6]
[1756535634710,3.46180095,205.69,205.61,7.6]
[1756535634909,3.46180095,205.68,205.61,7.6]
[1756535635212,3.46180095,205.67,205.61,7.6]
[1756535635508,3.46180095,205.66,205.59,7.6]
[1756535635714,3.46180095,205.65,205.59,7.6]
[1756535635914,3.46180095,205.64,205.59,7.6]
[1756535636110,3.46180095,205.63,205.59,7.6]
[1756535636310,26.89021816,205.7,205.59,13.04657474]
[1756535636510,3.46357004,205.69,205.6,7.6]
[1756535636718,3.46357004,205.68,205.6,7.6]
[1756535636913,3.46357004,205.67,205.6,7.6]
[1756535637214,3.46357004,205.66,205.6,7.6]
[1756535637409,3.46357004,205.65,205.6,7.6]
[1756535637605,3.46357004,205.64,205.59,5.44657474]
[1756535637915,3.46357004,205.63,205.6,7.6]
[1756535638114,26.89021816,205.7,205.6,7.6]
[1756535638315,3.46587538,205.69,205.6,7.6]
[1756535638615,3.46587538,205.68,205.6,7.6]
[1756535638810,3.46587538,205.67,205.6,7.6]
[1756535639004,3.46587538,205.66,205.6,7.6]
[1756535639211,3.46587538,205.65,205.61,4.09674885]
[1756535639411,3.46587538,205.64,205.61,4.09674885]
[1756535639612,3.46587538,205.63,205.62,7.6]
[1756535639812,3.46587538,205.69,205.62,7.6]
[1756535640012,3.46587538,205.68,205.62,7.6]
[1756535640215,3.46587538,205.67,205.61,4.09674885]
[1756535640415,3.46587538,205.66,205.61,4.09674885]
[1756535640716,3.46587538,205.65,205.61,4.09674885]
[1756535640914,3.46587538,205.64,205.61,4.09674885]
[1756535641120,3.46587538,205.63,205.62,7.6]
[1756535641312,3.46975577,205.63,205.62,7.6]
[1756535641512,3.46975577,205.63,205.62,11.69674885]
[1756535641916,55.06,205.72,205.62,7.6]
[1756535642212,3.47010834,205.71,205.65,7.6]
[1756535642416,3.47010834,205.7,205.65,7.6]
[1756535642606,3.47010834,205.69,205.65,7.6]
[1756535642809,3.47010834,205.68,205.65,7.6]
[1756535643008,3.47010834,205.67,205.65,7.6]
[1756535643219,3.47010834,205.66,205.65,7.6]
[1756535645915,3.47010834,205.66,205.65,11.69622228]
[1756535646518,3.47010834,205.66,205.65,7.6]
[1756535650321,3.47010834,205.66,205.64,4.09622228]
[1756535650616,3.44704322,205.65,205.62,7.37]
[1756535650816,3.44704322,205.64,205.61,4.09622228]
[1756535651020,3.44704322,205.63,205.62,7.37]
[1756535651921,2.81021816,205.69,205.62,11.46622228]
[1756535652116,3.44700615,205.68,205.62,7.37]
[1756535652319,3.44700615,205.67,205.61,4.09622228]
[1756535652621,3.44700615,205.66,205.61,11.46622228]
[1756535652818,3.44700615,205.65,205.61,11.46622228]
[1756535653016,3.44700615,205.64,205.62,7.37]
[1756535653219,3.44700615,205.63,205.62,7.37]
[1756535653722,3.44700615,205.68,205.62,7.37]
[1756535653920,3.44700615,205.67,205.62,7.37]
[1756535654222,3.44700615,205.66,205.62,7.37]
[1756535654417,3.44700615,205.65,205.61,7.37]
[1756535654623,3.44700615,205.64,205.61,7.37]
[1756535654919,3.44700615,205.63,205.6,4.09622228]
[1756535655220,3.44700615,205.62,205.61,7.37]
[1756535655415,3.44700615,205.68,205.61,7.37]
[1756535655622,2.81021816,205.66,205.6,4.09622228]
[1756535655816,3.44700615,205.65,205.59,4.09622228]
[1756535656022,3.44700615,205.64,205.6,7.37]
[1756535656221,3.44700615,205.63,205.6,7.37]
[1756535656423,3.44700615,205.62,205.6,7.37]
[1756535656623,3.44700615,205.61,205.6,7.37]
[1756535662328,2.81021816,205.66,205.58,4.09622228]
[1756535662522,3.44766243,205.65,205.59,7.37]
[1756535662718,3.44766243,205.64,205.58,4.09622228]
[1756535662919,3.44766243,205.63,205.58,4.09622228]
[1756535663125,3.44766243,205.62,205.58,4.09622228]
[1756535663427,3.44766243,205.61,205.59,7.37]
[1756535663628,2.83021816,205.66,205.59,7.37]
[1756535663829,3.44748157,205.65,205.59,7.37]
[1756535664127,3.44748157,205.64,205.59,7.37]
[1756535664424,3.44748157,205.63,205.6,7.37]
[1756535664623,0.02,205.66,205.6,4.09622228]
[1756535664925,3.44811223,205.65,205.61,7.37]
[1756535665121,3.44811223,205.64,205.6,4.09622228]
[1756535665326,3.44811223,205.63,205.61,7.37]
[1756535665627,0.02,205.66,205.6,4.09622228]
[1756535665927,3.44828161,205.65,205.61,7.37]
[1756535666126,3.44828161,205.64,205.6,4.09622228]
[1756535666325,3.44828161,205.63,205.6,4.09622228]
[1756535666621,0.02,205.66,205.61,7.37]
[1756535666826,3.44849295,205.65,205.61,7.37]
[1756535667028,3.44849295,205.64,205.6,4.09622228]
[1756535667224,3.44849295,205.63,205.6,4.09622228]
[1756535667427,0.02,205.66,205.6,4.09622228]
[1756535667624,3.44870744,205.65,205.6,4.09622228]
[1756535667922,3.44870744,205.64,205.6,4.09622228]
[1756535668121,3.44870744,205.63,205.6,4.09622228]
[1756535668327,2.81021816,205.68,205.6,4.09622228]
[1756535668527,3.46905475,205.67,205.61,7.37]
[1756535668826,3.44905475,205.66,205.61,7.37]
[1756535669031,3.44905475,205.66,205.6,4.09622228]
[1756535669329,3.44905475,205.65,205.61,7.37]
[1756535669530,3.44905475,205.64,205.6,4.09622228]
[1756535669726,3.44905475,205.63,205.61,7.37]
[1756535669926,0.02,205.67,205.61,7.37]
[1756535670126,3.44932981,205.66,205.61,4.09622228]
[1756535670326,3.44932981,205.65,205.61,4.09622228]
[1756535670527,3.44932981,205.64,205.61,4.09622228]
[1756535670729,2.81021816,205.69,205.62,7.37]
[1756535670931,3.44966506,205.68,205.62,7.37]
[1756535671230,3.44966506,205.67,205.61,4.09622228]
[1756535671427,3.44966506,205.66,205.61,4.09622228]
[1756535671634,3.44966506,205.65,205.61,4.09622228]
[1756535671826,3.44966506,205.64,205.61,4.09622228]
[1756535672026,2.83021816,205.69,205.62,7.37]
[1756535672224,3.44973684,205.68,205.62,7.37]
[1756535672431,3.44973684,205.67,205.61,4.09622228]
[1756535672630,3.44973684,205.66,205.62,7.37]
[1756535672829,3.44973684,205.65,205.62,7.37]
[1756535673031,3.44998266,205.64,205.61,4.09622228]
[1756535673230,3.44998266,205.63,205.62,7.37]
[1756535673626,3.44998266,205.67,205.62,7.37]
[1756535673833,0.02,205.65,205.62,7.37]
[1756535674030,3.44998266,205.64,205.62,7.37]
[1756535674230,3.44998266,205.64,205.6,11.46622228]
[1756535674231,0.02,205.63,205.6,11.46622228]
[1756535674432,3.44998266,205.62,205.6,11.46622228]
[1756535674630,3.44998266,205.62,205.6,7.37]
[1756535674832,3.44998266,205.62,205.6,11.46622228]
[1756535675032,3.44998266,205.62,205.61,7.37]
[1756535675426,3.44998266,205.65,205.61,7.37]
[1756535675631,3.44998266,205.64,205.61,7.37]
[1756535675833,3.44998266,205.63,205.61,7.37]
[1756535676032,3.44998266,205.62,205.61,7.37]
[1756535676532,3.46998266,205.65,205.6,7.37]
[1756535676734,2.81021816,205.66,205.6,7.37]
[1756535676735,3.44998266,205.64,205.6,7.37]
[1756535677036,3.46998266,205.63,205.6,7.37]
[1756535677238,3.44998266,205.62,205.6,7.37]
[1756535677836,3.44998266,205.62,205.58,4.09622228]
[1756535678132,3.44998266,205.62,205.59,7.6]
[1756535678338,3.44998266,205.62,205.58,4.09622228]
[1756535678733,3.44998266,205.61,205.59,7.6]
[1756535678930,2.81021816,205.66,205.59,7.6]
[1756535679141,3.450122,205.65,205.59,7.6]
[1756535679336,3.450122,205.64,205.59,7.6]
[1756535679530,3.450122,205.63,205.58,4.09622228]
[1756535679742,3.450122,205.62,205.58,4.09622228]
[1756535680043,3.450122,205.61,205.59,7.6]
[1756535680243,2.81021816,205.66,205.59,7.6]
[1756535680446,3.46253706,205.65,205.59,7.6]
[1756535680740,3.46253706,205.64,205.58,4.09622228]
[1756535680935,3.46253706,205.63,205.59,7.6]
[1756535681138,3.46253706,205.62,205.58,4.09253501]
[1756535681345,3.46253706,205.61,205.59,7.6]
[1756535681643,2.81021816,205.66,205.59,7.6]
[1756535681838,3.46203251,205.65,205.59,7.6]
[1756535682037,3.46203251,205.64,205.58,4.09253501]
[1756535682235,3.46203251,205.63,205.59,7.6]
[1756535682445,3.46203251,205.62,205.59,7.6]
[1756535682645,3.46203251,205.61,205.58,4.09253501]
[1756535682846,2.81021816,205.66,205.59,7.6]
[1756535683050,3.46179265,205.65,205.59,7.6]
[1756535683242,3.46179265,205.64,205.58,4.09253501]
[1756535683544,2.81021816,205.66,205.58,4.09253501]
[1756535683745,3.4614276,205.65,205.59,7.6]
[1756535683947,3.4614276,205.64,205.58,4.09253501]
[1756535684147,3.4614276,205.63,205.59,7.6]
[1756535684341,3.4614276,205.62,205.58,4.09253501]
[1756535684537,3.4614276,205.61,205.58,4.09253501]
[1756535684737,2.81021816,205.66,205.59,7.6]
[1756535684948,3.46131444,205.65,205.59,7.6]
[1756535685248,2.81021816,205.62,205.54,4.09253501]
[1756535685443,2.81021816,205.59,205.51,11.69253501]
[1756535685639,3.46131444,205.58,205.51,7.6]
[1756535685845,3.46131444,205.57,205.5,4.09253501]
[1756535686048,2.81021816,205.55,205.49,4.09253501]
[1756535686245,2.81021816,205.55,205.5,7.6]
[1756535686246,3.46131444,205.54,205.5,7.6]
[1756535686449,3.46131444,205.53,205.5,7.6]
[1756535686649,2.81021816,205.55,205.49,7.6]
[1756535686839,3.4576851,205.54,205.48,4.09253501]
[1756535687043,3.4576851,205.53,205.49,7.6]
[1756535687240,2.81021816,205.59,205.51,4.09253501]
[1756535687444,3.45670442,205.58,205.52,7.6]
[1756535687640,3.45670442,205.57,205.52,7.6]
[1756535687950,3.45670442,205.56,205.51,4.09253501]
[1756535688154,2.81021816,205.59,205.52,7.6]
[1756535688349,3.45595972,205.58,205.52,7.6]
[1756535688549,3.45595972,205.57,205.51,7.6]
[1756535688748,3.45595972,205.56,205.52,7.6]
[1756535688952,2.81021816,205.59,205.52,7.6]
[1756535689152,3.45618189,205.58,205.52,7.6]
[1756535689352,3.45618189,205.57,205.5,4.09253501]
[1756535689554,3.45618189,205.56,205.5,4.09253501]
[1756535689747,2.81021816,205.59,205.51,7.6]
[1756535689953,3.45554508,205.58,205.51,7.6]
[1756535690254,3.45554508,205.57,205.51,7.6]
[1756535690448,6.26576324,205.56,205.49,7.6]
[1756535690757,3.45554508,205.55,205.49,7.6]
[1756535693756,2.81021816,205.53,205.49,7.6]
[1756535694059,2.81021816,205.53,205.5,7.63084839]
[1756535694251,2.81021816,205.6,205.51,7.6]
[1756535694554,2.81021816,205.55,205.51,7.6]
[1756535694755,3.4528645,205.54,205.51,7.6]
[1756535696658,3.4528645,205.54,205.5,0.03084839]
[1756535696961,2.81021816,205.52,205.5,0.03084839]
[1756535698660,3.44988975,205.51,205.44,7.6]